fUST/lending_fUST_20251121
["ID","MTS","AMOUNT","RATE_DAILY","PERIOD"]
[394527404,1763667047895,-293.08424051,0.00021697,30]
[394527405,1763667047904,-281.25,0.00021771,30]
[394527406,1763667047914,-1000.0,0.000218,2]
[394527407,1763667047924,-1000.0,0.000218,2]
[394527408,1763667047933,-1000.0,0.000218,2]
[394527409,1763667047942,-1000.0,0.000219,2]
[394527410,1763667047951,-218.628236,0.00021918,2]
[394527411,1763667047960,-151.0,0.00021918,7]
[394527412,1763667047970,-300.0,0.00021918,2]
[394527413,1763667047979,-150.0,0.00021918,2]
[394527414,1763667047988,-558.85,0.00022,7]
[394527415,1763667047998,-151.0,0.00022,7]
[394527416,1763667048008,-151.0,0.00022,7]
[394527417,1763667048019,-151.0,0.00022,7]
[394527418,1763667048029,-151.0,0.00022,7]
[394527419,1763667048038,-170.51063863,0.00022,10]
[394527420,1763667048048,-50943.75438927,0.00022,2]
[394527421,1763667049082,-18040.48561073,0.00022,2]
[394527422,1763667049092,-151.0,0.000221,8]
[394527423,1763667049103,-300.0,0.00022466,2]
[394527424,1763667049113,-393.0,0.00022704,2]
[394527425,1763667049123,-600.0,0.0002274,2]
[394527426,1763667049132,-182.0,0.00023,7]
[394527427,1763667049141,-296.17649666,0.00023,117]
[394527428,1763667049151,-153.05066118,0.00023014,2]
[394527429,1763667049160,-151.0,0.000235,6]
[394527430,1763667049170,-2088.46777485,0.00023543,2]
[394527431,1763667049179,-850.58764717,0.00023562,2]
[394527432,1763667049190,-560.15,0.000236,14]
[394527433,1763667049200,-2088.46777485,0.00023652,2]
[394527434,1763667049209,-2404.47112629,0.00023804,2]
[394527435,1763667049219,-2088.46777485,0.0002398,2]
[394527436,1763667049228,-165.0,0.00024,7]
[394527437,1763667049238,-2088.46777485,0.0002411,2]
[394527438,1763667049247,-25802.44951688,0.00024142,2]
[394527439,1763667049259,-2536.95879712,0.00024142,2]
[394527440,1763667075226,320.38336157,5e-05,2]
[394527441,1763667082452,4004.61663843,4.604e-05,2]
[394527442,1763667084104,-4325.0,4.604e-05,2]
[394527443,1763667309856,170.0,0.0002201,120]
[394527444,1763667311372,170.0,0.0002311,120]
[394527445,1763667312949,170.0,0.00024266,120]
[394527446,1763667314446,-167.00221049,4.604e-05,2]
[394527447,1763667316416,-205.08483719,4.604e-05,2]
[394527448,1763667319015,3703.065019,0.00032,120]
[394527449,1763667319380,-192.67114769,4.604e-05,2]
[394527450,1763667321002,-228.82068515,4.604e-05,2]
[394527451,1763667323501,-405.69373878,4.604e-05,2]
[394527452,1763667326772,-282.57982742,4.604e-05,2]
[394527453,1763667331175,164.0,0.00023333,120]
[394527455,1763667433369,-9580.98682259,4.604e-05,2]
[394527456,1763667436419,-10000.01,4.604e-05,2]
[394527457,1763667459312,-63008.755909,4.604e-05,2]
[394527458,1763667467984,1200.0,4.603e-05,2]
[394527459,1763667482535,300.0,4.603e-05,2]
[394527461,1763667601519,300.0,4.603e-05,2]
[394527462,1763667602500,300.0,4.603e-05,2]
[394527463,1763667607021,300.0,4.603e-05,2]
[394527464,1763667609309,-16508.755909,4.604e-05,2]
[394527465,1763667609987,1200.0,4.603e-05,2]
[394527466,1763667627002,-23008.755909,4.604e-05,2]
[394527467,1763667652162,-8008.755909,4.604e-05,2]
[394527468,1763667679892,-13008.755909,4.604e-05,2]
[394527481,1763667899241,-232.84277287,4.604e-05,2]
[394527482,1763667900908,-500.0,4.604e-05,2]
[394527483,1763667907791,-274.14153861,4.604e-05,2]
[394527484,1763667909128,283.0,4.603e-05,2]
[394527485,1763667911784,-160.09142126,4.604e-05,2]
[394527486,1763667914459,-179.38086943,4.604e-05,2]
[394527487,1763667917338,-218.99074846,4.604e-05,2]
[394527488,1763667920067,-163.85231596,4.604e-05,2]
[394527489,1763667922868,-350.00327425,4.604e-05,2]
[394527490,1763667926881,-267.16020983,4.604e-05,2]
[394527491,1763667928932,-185.81014255,4.604e-05,2]
[394527493,1763667931080,-278.7756063,4.604e-05,2]
[394527494,1763667934403,-169.3753134,4.604e-05,2]
[394527495,1763667936091,-282.03627464,4.604e-05,2]
[394527496,1763667940660,-171.28612386,4.604e-05,2]
[394527497,1763667943534,-200.0,4.604e-05,2]
[394527498,1763667946812,-179.65731897,4.604e-05,2]
[394527499,1763667948892,-196.70408005,4.604e-05,2]
[394527500,1763667951042,-430.58866728,4.604e-05,2]
[394527501,1763667953726,-159.89806499,4.604e-05,2]
[394527502,1763667955983,-315.24372136,4.604e-05,2]
[394527503,1763667962748,300.0,4.603e-05,2]
[394527505,1763668005081,-367.96372536,4.604e-05,2]
[394527506,1763668007147,-194.23588192,4.604e-05,2]
[394527507,1763668009936,-179.3270554,4.604e-05,2]
[394527524,1763668013761,-320.6729446,4.604e-05,2]
[394527529,1763668016543,-156.33699387,4.604e-05,2]
[394527530,1763668021253,-158.90364742,4.604e-05,2]
[394527531,1763668024753,-272.55975143,4.604e-05,2]
[394527532,1763668028260,-152.46570568,4.604e-05,2]
[394527533,1763668029876,-154.27065115,4.604e-05,2]
[394527534,1763668048486,-305.7781424,4.604e-05,2]
[394527535,1763668050068,-296.46858268,4.604e-05,2]
[394527536,1763668077978,7317.01,4.504e-05,2]
[394527537,1763668078002,10000.01,4.504e-05,2]
[394527538,1763668078525,-239.47360781,4.504e-05,2]
[394527539,1763668081840,-238.37646405,4.504e-05,2]
[394527540,1763668084717,-250.60546243,4.504e-05,2]
[394527541,1763668087452,-433.65191008,4.504e-05,2]
[394527542,1763668089655,-206.44092067,4.504e-05,2]
[394527543,1763668091274,-227.89014066,4.504e-05,2]
[394527544,1763668095956,-346.43679935,4.504e-05,2]
[394527545,1763668099245,-243.95404437,4.504e-05,2]
[394527546,1763668138504,-232.28023772,4.504e-05,2]
[394527547,1763668161147,-831343.01634594,4.504e-05,2]
[394527548,1763668162129,-1716.64225852,4.504e-05,2]
[394527549,1763668165137,-37204.2118084,4.504e-05,2]
[394527550,1763668165159,-150.0,4.615e-05,2]
[394527551,1763668165181,-300.0,4.695e-05,2]
[394527552,1763668165204,-300.0,4.695e-05,2]
[394527553,1763668165226,-300.0,4.695e-05,2]
[394527554,1763668165249,-300.0,4.695e-05,2]
[394527555,1763668165275,-300.0,4.695e-05,2]
[394527556,1763668165297,-300.0,4.695e-05,2]
[394527557,1763668165322,-500.0,5e-05,2]
[394527558,1763668165343,-299.00055046,5e-05,2]
[394527559,1763668165368,-500.0,5e-05,2]
[394527560,1763668165392,-500.0,5e-05,2]
[394527561,1763668165418,-500.0,5e-05,2]
[394527562,1763668165442,-500.0,5e-05,2]
[394527563,1763668165466,-500.0,5e-05,2]
[394527564,1763668165489,-500.0,5e-05,2]
[394527565,1763668165513,-500.0,5e-05,2]
[394527566,1763668165535,-500.0,5e-05,2]
[394527567,1763668165559,-500.0,5e-05,2]
[394527568,1763668165582,-500.0,5e-05,2]
[394527569,1763668165605,-500.0,5e-05,2]
[394527570,1763668165629,-500.0,5e-05,2]
[394527571,1763668165652,-500.0,5e-05,2]
[394527572,1763668165676,-500.0,5e-05,2]
[394527573,1763668165699,-500.0,5e-05,2]
[394527574,1763668165721,-500.0,5e-05,2]
[394527575,1763668165746,-500.0,5e-05,2]
[394527576,1763668165768,-500.0,5e-05,2]
[394527577,1763668165791,-591.22709715,5e-05,2]
[394527578,1763668165815,-500.0,5e-05,2]
[394527579,1763668165841,-500.0,5e-05,2]
[394527580,1763668165868,-500.0,5e-05,2]
[394527581,1763668165893,-423.86708662,5e-05,2]
[394527582,1763668165917,-500.0,5e-05,2]
[394527583,1763668165942,-499.85173253,5e-05,2]
[394527584,1763668165970,-500.0,5e-05,2]
[394527585,1763668165996,-500.0,5e-05,2]
[394527586,1763668166030,-500.0,5e-05,2]
[394527587,1763668166059,-320.38336157,5e-05,2]
[394527588,1763668166085,-232.83979017,5e-05,2]
[394527589,1763668166107,-624.14481286,5e-05,2]
[394527590,1763668166133,-329.37759518,5e-05,2]
[394527591,1763668166153,-163.85231596,5e-05,2]
[394527592,1763668166176,-379.08216972,5e-05,2]
[394527593,1763668166201,-617.16348408,5e-05,2]
[394527594,1763668166226,-169.3753134,5e-05,2]
[394527595,1763668166252,-591.52666268,5e-05,2]
[394527596,1763668166282,-500.0,5e-05,2]
[394527597,1763668166308,-500.0,5e-05,2]
[394527598,1763668166332,-437.01792684,5e-05,2]
[394527599,1763668166353,-500.0,5e-05,2]
[394527600,1763668166373,-500.0,5e-05,2]
[394527601,1763668166394,-466.13247383,5e-05,2]
[394527602,1763668166415,-500.0,5e-05,2]
[394527603,1763668166436,-301.40574774,5e-05,2]
[394527604,1763668166456,-515.60365444,5.479e-05,2]
[394527605,1763668166476,-177.0,6.615e-05,2]
[394527606,1763668166494,-433.51275314,7.624e-05,2]
[394527607,1763668166515,-204.0,8.615e-05,2]
[394527608,1763668166534,-198.82084096,9.99e-05,2]
[394527647,1763668232301,-62.68915904,9.99e-05,2]
[394527649,1763668232312,-231.0,0.00010615,2]
[394527651,1763668232322,-168.53884096,0.00010959,2]
[394527656,1763668232367,-787.442,0.00010959,2]
[394527671,1763668238322,-43.01915904,0.00010959,2]
[394527672,1763668238332,-258.0,0.00012615,2]
[394527673,1763668238346,-60.76589066,0.00012899,2]
[394527686,1763668240642,-1139.23410934,0.00012899,2]
[394527687,1763668240651,-440.66491181,0.00013357,2]
[394527689,1763668240660,-500.0,0.00013357,2]
[394527691,1763668240670,-500.0,0.00013357,2]
[394527693,1763668240680,-447.58278045,0.00013357,2]
[394527694,1763668240689,-160.0,0.00013358,2]
[394527695,1763668240698,-998.5138,0.00013659,2]
[394527696,1763668240708,-269.6652,0.00013699,2]
[394527697,1763668240717,-500.0,0.0001452,2]
[394527698,1763668240726,-500.0,0.0001452,2]
[394527699,1763668240735,-429.00862837,0.0001452,2]
[394527700,1763668240745,-500.0,0.0001452,2]
[394527701,1763668240759,-500.0,0.0001452,2]
[394527702,1763668240768,-500.0,0.0001452,2]
[394527703,1763668240778,-500.0,0.0001452,2]
[394527704,1763668240788,-491.75730089,0.0001452,2]
[394527705,1763668240799,-44855.15985518,0.00014521,2]
[394527706,1763668240814,-16630.86289212,0.00014521,2]
[394527707,1763668240825,-300.0,0.00014613,2]
[394527708,1763668240835,-300.0,0.00014614,2]
[394527709,1763668240845,-300.0,0.00014614,2]
[394527710,1763668240854,-285.0,0.00014615,2]
[394527711,1763668240863,-256.630373,0.00014684,2]
[394527712,1763668240872,-9926.36348672,0.00014684,2]
[394527713,1763668240885,-40073.63651328,0.00014684,2]
[394527714,1763668240895,-218.628236,0.00015068,2]
[394527715,1763668240906,-186.55726399,0.00016338,2]
[394527716,1763668240915,-380.20376221,0.00016438,2]
[394527717,1763668240925,-154.1617416,0.00016438,2]
[394527718,1763668240934,-277.49113488,0.00016438,2]
[394527719,1763668240943,-500.0,0.00016438,2]
[394527720,1763668241054,-500.0,0.00016438,2]
[394527721,1763668241064,-500.0,0.00016438,2]
[394527722,1763668241074,-500.0,0.00016438,2]
[394527723,1763668241084,-500.0,0.00016438,2]
[394527724,1763668241096,-500.0,0.00016438,2]
[394527725,1763668241106,-500.0,0.00016438,2]
[394527726,1763668241115,-500.0,0.00016438,2]
[394527727,1763668241125,-500.0,0.00016438,2]
[394527728,1763668241134,-500.0,0.00016438,2]
[394527729,1763668241144,-500.0,0.00016438,2]
[394527730,1763668241153,-500.0,0.00016438,2]
[394527731,1763668241163,-500.0,0.00016438,2]
[394527732,1763668241173,-500.0,0.00016438,2]
[394527733,1763668241182,-500.0,0.00016438,2]
[394527734,1763668241192,-500.0,0.00016438,2]
[394527735,1763668241202,-500.0,0.00016438,2]
[394527736,1763668241212,-500.0,0.00016438,2]
[394527737,1763668241222,-500.0,0.00016438,2]
[394527738,1763668241232,-500.0,0.00016438,2]
[394527739,1763668241242,-236.41267708,0.00016438,2]
[394527740,1763668241251,-500.0,0.00016438,2]
[394527741,1763668241265,-500.0,0.00016438,2]
[394527742,1763668241275,-500.0,0.00016438,2]
[394527743,1763668241285,-500.0,0.00016438,2]
[394527744,1763668241294,-500.0,0.00016438,2]
[394527745,1763668241304,-500.0,0.00016438,2]
[394527746,1763668241314,-500.0,0.00016438,2]
[394527747,1763668241324,-500.0,0.00016438,2]
[394527748,1763668241334,-500.0,0.00016438,2]
[394527749,1763668241347,-500.0,0.00016438,2]
[394527750,1763668241356,-500.0,0.00016438,2]
[394527751,1763668241367,-500.0,0.00016438,2]
[394527752,1763668241376,-500.0,0.00016438,2]
[394527753,1763668241386,-500.0,0.00016438,2]
[394527754,1763668241396,-500.0,0.00016438,2]
[394527755,1763668241405,-500.0,0.00016438,2]
[394527756,1763668241415,-315.53316788,0.00016438,2]
[394527757,1763668241424,-312.0,0.00016615,2]
[394527758,1763668241434,-444.67437629,0.00016683,2]
[394527759,1763668241443,-168.0,0.00016738,2]
[394527760,1763668241453,-168.0,0.00016881,2]
[394527761,1763668241463,-433.51275314,0.0001709,2]
[394527762,1763668241472,-168.0,0.00017179,2]
[394527763,1763668241481,-168.0,0.00017261,2]
[394527764,1763668241491,-168.0,0.00017357,2]
[394527765,1763668241500,-168.0,0.00017485,2]
[394527766,1763668241509,-221.1,0.00017558,2]
[394527767,1763668241518,-221.1,0.00017558,2]
[394527768,1763668241528,-167.99,0.00017558,2]
[394527769,1763668241537,-168.0,0.00017658,2]
[394527770,1763668241547,-168.0,0.00017772,2]
[394527771,1763668241558,-168.0,0.00017852,2]
[394527772,1763668241568,-168.0,0.00017875,2]
[394527773,1763668241577,-168.0,0.00018134,2]
[394527774,1763668241587,-168.0,0.00018322,2]
[394527775,1763668241597,-168.0,0.00018403,2]
[394527776,1763668241607,-168.0,0.00018422,2]
[394527777,1763668241616,-339.0,0.00018615,2]
[394527778,1763668241626,-151.43440587,0.0002,2]
[394527779,1763668241635,-366.0,0.00020615,2]
[394527780,1763668241645,-563.53557796,0.00022012,10]
[394527781,1763668241660,-6596.94442204,0.00022012,10]
[394527782,1763668241670,-12819.13833386,0.00022022,2]
[394527783,1763668241697,-4675.72845584,0.00022022,2]
[394527784,1763668241707,-553.99,0.000221,7]
[394527785,1763668241716,-256.630373,0.00022235,2]
[394527786,1763668241727,-4300.80590421,0.00022586,2]
[394527787,1763668241738,-393.0,0.00022615,2]
[394527788,1763668241748,-151.0,0.000228,9]
[394527789,1763668241760,-4300.80590421,0.00022954,2]
[394527790,1763668241770,-4300.80590421,0.00023026,2]
[394527791,1763668241779,-202.92763464,0.0002318,7]
[394527792,1763668241788,-178.74049809,0.0002318,7]
[394527793,1763668241799,-4300.80590421,0.00023381,2]
[394527794,1763668241808,-4300.80590421,0.00023612,2]
[394527795,1763668241818,-1726.72567269,0.00023745,2]
[394527796,1763668241829,-548.851,0.00024,30]
[394527797,1763668241843,-540.8,0.000241,14]
[394527798,1763668241852,-4300.80590421,0.00024101,2]
[394527799,1763668241862,-7270.9417002,0.00024142,2]
[394527800,1763668241872,-17494.8667897,0.00024337,2]
[394527801,1763668241881,-54416.41673772,0.000244,2]
[394527802,1763668241893,-275.29841306,0.000244,2]
[394527803,1763668241905,-500.0,0.000244,2]
[394527804,1763668242290,-69.12551005,0.000244,2]
[394527811,1763668244752,-2903.46093339,0.000244,2]
[394527812,1763668245499,-3921.51840578,0.000244,2]
[394527814,1763668245511,-549.00593576,0.00024643,2]
[394527818,1763668247934,-356.68555753,0.000243,2]
[394527819,1763668247944,-98.24651447,0.00024643,2]
[394527821,1763668248711,10000.01,4.504e-05,2]
[394527822,1763668248735,10000.01,4.504e-05,2]
[394527823,1763668248762,10000.01,4.504e-05,2]
[394527824,1763668248788,10000.01,4.504e-05,2]
[394527825,1763668248813,10000.01,4.504e-05,2]
[394527826,1763668248841,10000.01,4.504e-05,2]
[394527827,1763668255954,-698.67394916,4.504e-05,2]
[394527828,1763668258411,-10000.01,4.504e-05,2]
[394527829,1763668258573,-10000.01,4.504e-05,2]
[394527830,1763668258691,-10000.01,4.504e-05,2]
[394527831,1763668258929,-10000.01,4.504e-05,2]
[394527832,1763668259131,-10000.01,4.504e-05,2]
[394527833,1763668259260,-10000.01,4.504e-05,2]
[394527834,1763668259950,-219.57864953,4.504e-05,2]
[394527835,1763668261292,-10000.01,4.504e-05,2]
[394527836,1763668261583,179.1,1e-05,2]
[394527837,1763668261879,179.1,1e-05,2]
[394527838,1763668262205,179.1,1.1e-05,2]
[394527839,1763668262275,-179.45187589,4.504e-05,2]
[394527840,1763668262690,179.1,1.1e-05,2]
[394527841,1763668262966,179.1,1.1e-05,2]
[394527842,1763668263234,895.51,1e-05,2]
[394527843,1763668264437,-300.0,4.503e-05,2]
[394527844,1763668264472,-9400.01,4.504e-05,2]
[394527845,1763668264544,-10000.01,4.504e-05,2]
[394527846,1763668264729,-10000.01,4.504e-05,2]
[394527847,1763668264862,-10000.01,4.504e-05,2]
[394527848,1763668264981,-10000.01,4.504e-05,2]
[394527849,1763668265137,-10000.01,4.504e-05,2]
[394527850,1763668265592,-473.21318027,4.504e-05,2]
[394527851,1763668267157,-220.13191091,4.504e-05,2]
[394527852,1763668268771,-430.2752863,4.504e-05,2]
[394527853,1763668270417,-252.04792778,4.504e-05,2]
[394527854,1763668273190,-549.31778356,4.504e-05,2]
[394527855,1763668275907,-187.1797317,4.504e-05,2]
[394527856,1763668279354,-174.29091322,4.504e-05,2]
[394527857,1763668284033,-281.19111995,4.504e-05,2]
[394527858,1763668286233,-431.29047421,4.504e-05,2]
[394527859,1763668289449,-228.82068518,4.504e-05,2]
[394527860,1763668292303,-163.30045192,4.504e-05,2]
[394527862,1763668294614,-282.03627464,4.504e-05,2]
[394527863,1763668297524,-189.61737878,4.504e-05,2]
[394527864,1763668299214,-174.16481932,4.504e-05,2]
[394527865,1763668302610,-300.0,4.504e-05,2]
[394527866,1763668307548,-320.27811192,4.504e-05,2]
[394527867,1763668310571,-241.52167709,4.504e-05,2]
[394527868,1763668312145,-228.20064166,4.504e-05,2]
[394527869,1763668313635,-203.19679978,4.504e-05,2]
[394527870,1763668316124,-249.66715996,4.504e-05,2]
[394527871,1763668317816,-156.33798714,4.504e-05,2]
[394527872,1763668321493,-265.09591958,4.504e-05,2]
[394527873,1763668321712,179.1,1e-05,2]
[394527874,1763668321984,179.1,1e-05,2]
[394527875,1763668322264,179.1,1.1e-05,2]
[394527876,1763668322611,179.1,1.1e-05,2]
[394527877,1763668322961,179.1,1.1e-05,2]
[394527878,1763668323248,895.51,1e-05,2]
[394527879,1763668323691,-339.87430034,4.504e-05,2]
[394527880,1763668325823,-215.2884375,4.504e-05,2]
[394527881,1763668327977,-186.9649106,4.504e-05,2]
[394527882,1763668330770,-187.49742034,4.504e-05,2]
[394527883,1763668332407,-241.29289396,4.504e-05,2]
[394527914,1763668334519,-236.03605684,4.504e-05,2]
[394527952,1763668336135,-239.93300369,4.504e-05,2]
[394527988,1763668337675,-190.49504036,4.504e-05,2]
[394527994,1763668341153,-173.07399302,4.504e-05,2]
[394527995,1763668344545,-163.46915366,4.504e-05,2]
[394527996,1763668346656,-405.22356041,4.504e-05,2]
[394527997,1763668348407,-217.16352031,4.504e-05,2]
[394527998,1763668350655,-289.21322807,4.504e-05,2]
[394527999,1763668352393,-179.54970403,4.504e-05,2]
[394528000,1763668354609,-204.1845025,4.504e-05,2]
[394528009,1763668357627,-160.84143513,4.504e-05,2]
[394528010,1763668359480,-315.6131053,4.504e-05,2]
[394528011,1763668362416,-280.93565234,4.504e-05,2]
[394528012,1763668366148,-181.35354556,4.504e-05,2]
[394528013,1763668367805,-169.52504014,4.504e-05,2]
[394528014,1763668369400,-194.0,4.503e-05,2]
[394528015,1763668372392,-175.0,4.503e-05,2]
[394528016,1763668372416,-59.46429188,4.504e-05,2]
[394528017,1763668374119,-219.99452418,4.504e-05,2]
[394528018,1763668377047,-231.86576167,4.504e-05,2]
[394528026,1763668381186,-265.37778853,4.504e-05,2]
[394528030,1763668381347,179.1,1e-05,2]
[394528034,1763668381635,179.1,1e-05,2]
[394528043,1763668381925,179.1,1.1e-05,2]
[394528051,1763668382205,179.1,1.1e-05,2]
[394528059,1763668382483,179.1,1.1e-05,2]
[394528084,1763668383439,895.51,1e-05,2]
[394528095,1763668383931,-228.64933975,4.503e-05,2]
[394528107,1763668385549,-71.35066025,4.503e-05,2]
[394528108,1763668385573,-114.39242889,4.504e-05,2]
[394528110,1763668387147,-166.58828494,4.504e-05,2]
[394528112,1763668389771,-171.01063317,4.504e-05,2]
[394528121,1763668392521,-200.95741177,4.504e-05,2]
[394528133,1763668394612,-300.0,4.504e-05,2]
[394528134,1763668397335,-271.69504133,4.504e-05,2]
[394528135,1763668400652,-270.16691748,4.504e-05,2]
[394528136,1763668402645,-255.30727653,4.504e-05,2]
[394528137,1763668404255,-236.7757933,4.504e-05,2]
[394528138,1763668406678,-223.09755959,4.504e-05,2]
[394528139,1763668410869,-192.00105461,4.504e-05,2]
[394528140,1763668412562,-377.7558876,4.504e-05,2]
[394528141,1763668415930,-179.28524712,4.504e-05,2]
[394528142,1763668418871,-235.35880061,4.504e-05,2]
[394528143,1763668420810,-459.58763066,4.504e-05,2]
[394528144,1763668424000,-207.70071421,4.504e-05,2]
[394528145,1763668425626,3452.03042362,4.404e-05,2]
[394528147,1763668426835,-360.5417134,4.504e-05,2]
[394528148,1763668429736,-295.80552436,4.504e-05,2]
[394528149,1763668433688,-165.20646106,4.504e-05,2]
[394528150,1763668436173,-186.24481626,4.504e-05,2]
[394528151,1763668439682,-604.71255303,4.504e-05,2]
[394528152,1763668441551,179.1,1e-05,2]
[394528153,1763668441900,179.1,1e-05,2]
[394528154,1763668442086,-153.64209412,4.504e-05,2]
[394528155,1763668442236,179.1,1.1e-05,2]
[394528156,1763668442532,179.1,1.1e-05,2]
[394528157,1763668442821,179.1,1.1e-05,2]
[394528158,1763668443123,895.51,1e-05,2]
[394528159,1763668447167,-153.95640602,4.503e-05,2]
[394528160,1763668450239,-146.04359398,4.503e-05,2]
[394528161,1763668450266,-113.07776084,4.504e-05,2]
[394528162,1763668451926,-262.33922561,4.504e-05,2]
[394528163,1763668455290,-446.215756,4.504e-05,2]
[394528164,1763668457583,-384.21283943,4.504e-05,2]
[394528165,1763668461445,-202.73116124,4.504e-05,2]
[394528166,1763668465442,-323.1023012,4.504e-05,2]
[394528167,1763668468067,-236.26636366,4.504e-05,2]
[394528168,1763668470771,-469.53624918,4.504e-05,2]
[394528169,1763668472475,-226.87864518,4.504e-05,2]
[394528170,1763668475548,-351.03692855,4.504e-05,2]
[394528171,1763668478471,-300.0,4.504e-05,2]
[394528172,1763668480024,-158.11220794,4.504e-05,2]
[394528173,1763668481996,-165.20419547,4.504e-05,2]
[394528174,1763668486716,-300.0,4.504e-05,2]
[394528175,1763668488838,-300.0222215,4.504e-05,2]
[394528176,1763668491762,-209.37512026,4.504e-05,2]
[394528177,1763668493167,-217.36372703,4.504e-05,2]
[394528178,1763668494724,-178.74595623,4.504e-05,2]
[394528179,1763668496912,-212.03531193,4.504e-05,2]
[394528180,1763668501071,-229.2473945,4.504e-05,2]
[394528181,1763668501577,179.1,1e-05,2]
[394528182,1763668501923,179.1,1e-05,2]
[394528183,1763668502139,179.1,1.1e-05,2]
[394528184,1763668502422,179.1,1.1e-05,2]
[394528185,1763668502759,179.1,1.1e-05,2]
[394528186,1763668503124,895.51,1e-05,2]
[394528187,1763668503155,-175.94239484,4.503e-05,2]
[394528188,1763668504923,-124.05760516,4.503e-05,2]
[394528189,1763668504952,-105.23760515,4.504e-05,2]
[394528190,1763668507787,-210.33789322,4.503e-05,2]
[394528191,1763668509137,-89.66210678,4.503e-05,2]
[394528192,1763668509160,-310.94323038,4.503e-05,2]
[394528193,1763668511328,-358.14019399,4.503e-05,2]
[394528194,1763668516049,-350.20249363,4.503e-05,2]
[394528195,1763668518962,-180.714082,4.503e-05,2]
[394528196,1763668518987,-104.86905735,4.504e-05,2]
[394528197,1763668521263,-204.6806103,4.504e-05,2]
[394528198,1763668523451,-455.58661567,4.504e-05,2]
[394528200,1763668525124,-242.84001876,4.504e-05,2]
[394528201,1763668526637,-170.35032243,4.504e-05,2]
[394528202,1763668529314,-200.55036832,4.504e-05,2]
[394528203,1763668531637,-174.04848096,4.504e-05,2]
[394528204,1763668534224,-259.42916618,4.504e-05,2]
[394528205,1763668536626,-172.04244832,4.504e-05,2]
[394528206,1763668538661,-327.14226415,4.504e-05,2]
[394528207,1763668541954,-197.23116137,4.504e-05,2]
[394528208,1763668544864,-334.19759011,4.504e-05,2]
[394528209,1763668547531,-300.30158247,4.504e-05,2]
[394528210,1763668549742,-199.69841753,4.504e-05,2]
[394528211,1763668552026,-204.41545471,4.504e-05,2]
[394528212,1763668554235,-210.3064887,4.504e-05,2]
[394528213,1763668556517,-279.48265412,4.504e-05,2]
[394528215,1763668561139,-194.0,4.504e-05,2]
[394528216,1763668561614,179.1,1e-05,2]
[394528217,1763668562018,179.1,1e-05,2]
[394528218,1763668562312,179.1,1.1e-05,2]
[394528219,1763668562603,179.1,1.1e-05,2]
[394528220,1763668562681,-378.13958853,4.504e-05,2]
[394528221,1763668562894,179.1,1.1e-05,2]
[394528222,1763668563173,895.51,1e-05,2]
[394528223,1763668567105,-266.47809034,4.503e-05,2]
[394528224,1763668569142,-33.52190966,4.503e-05,2]
[394528225,1763668569169,-241.5464534,4.504e-05,2]
[394528226,1763668573073,-171.37507473,4.504e-05,2]
[394528227,1763668575401,-300.0,4.504e-05,2]
[394528228,1763668578585,-232.81279311,4.504e-05,2]
[394528229,1763668581750,-198.3925409,4.504e-05,2]
[394528230,1763668584243,-250.82962637,4.504e-05,2]
[394528232,1763668587817,-229.07687745,4.504e-05,2]
[394528233,1763668592073,-188.48899704,4.504e-05,2]
[394528234,1763668594215,-196.02082834,4.504e-05,2]
[394528235,1763668595854,-229.48350012,4.504e-05,2]
[394528236,1763668597968,-156.92979705,4.504e-05,2]
[394528237,1763668597990,-197.09271217,4.504e-05,2]
[394528238,1763668601711,-183.0,4.504e-05,2]
[394528239,1763668603832,-260.67434388,4.504e-05,2]
[394528240,1763668607813,-300.0,4.504e-05,2]
[394528241,1763668611957,-59.23294395,4.504e-05,2]
[394528242,1763668611979,-230.35178999,4.504e-05,2]
[394528243,1763668614178,-188.11368359,4.504e-05,2]
[394528244,1763668618419,-319.58767121,4.504e-05,2]